bitfinex/quotes_BTCUSD_20250118
["timestamp","ask_amount","ask_price","bid_price","bid_amount"]
[1737175749440,0.46493295,103370.0,103360.0,0.1760478]
[1737175750517,0.68153896,103370.0,103360.0,0.1760478]
[1737175750908,0.58479996,103370.0,103360.0,0.1760478]
[1737175751742,0.476937,103370.0,103360.0,0.1760478]
[1737175751943,0.476937,103370.0,103360.0,0.2247478]
[1737175752087,0.476937,103370.0,103360.0,0.26117213]
[1737175752302,0.476937,103370.0,103360.0,0.42382224]
[1737175753268,0.000428,103370.0,103360.0,0.60396006]
[1737175754175,0.000428,103370.0,103360.0,0.71182302]
[1737175754583,0.000428,103370.0,103360.0,0.60396006]
[1737175754785,0.000428,103370.0,103360.0,0.71182302]
[1737175755639,0.000428,103370.0,103360.0,0.83482302]
[1737175756804,0.000428,103370.0,103360.0,0.73482302]
[1737175757006,0.000428,103370.0,103360.0,0.83482302]
[1737175758052,0.000428,103370.0,103360.0,0.69839869]
[1737175758450,0.000428,103370.0,103360.0,0.73482302]
[1737175758743,0.000428,103370.0,103360.0,0.61008006]
[1737175760088,0.000428,103370.0,103360.0,0.7178138]
[1737175764837,0.000428,103370.0,103360.0,0.71779959]
[1737175769211,0.000428,103370.0,103360.0,0.57994224]
[1737175769412,0.000428,103370.0,103360.0,0.6099849]
[1737175769554,0.000428,103370.0,103360.0,0.57994224]
[1737175770361,0.000428,103370.0,103360.0,0.60998558]
[1737175770588,0.000428,103370.0,103360.0,0.57994224]
[1737175770909,0.000428,103370.0,103360.0,0.7177044]
[1737175773309,0.000428,103370.0,103360.0,0.60998487]
[1737175774628,0.000428,103370.0,103360.0,0.57994224]
[1737175775590,0.000428,103370.0,103360.0,0.52512224]
[1737175779274,0.000428,103370.0,103360.0,0.55518104]
[1737175780017,0.000428,103370.0,103360.0,0.66290057]
[1737175780980,0.000428,103370.0,103360.0,0.55518104]
[1737175781410,0.10814753,103370.0,103360.0,0.1911159]
[1737175781609,0.10814753,103370.0,103360.0,0.0976478]
[1737175782012,0.18334753,103370.0,103360.0,0.0976478]
[1737175782189,0.23314753,103370.0,103360.0,0.0976478]
[1737175782616,0.32988653,103370.0,103360.0,0.0008988]
[1737175782954,0.32988653,103370.0,103360.0,0.0976478]
[1737175783351,0.52929371,103370.0,103360.0,0.0008988]
[1737175783576,0.61571804,103370.0,103360.0,0.0008988]
[1737175783783,0.83306011,103370.0,103360.0,0.0008988]
[1737175783939,0.79646941,103370.0,103360.0,0.0008988]
[1737175784143,0.89571022,103370.0,103360.0,0.0008988]
[1737175784966,1.06899067,103370.0,103360.0,0.0008988]
[1737175785167,0.47191537,103360.0,103350.0,0.00029416]
[1737175785370,0.78659524,103360.0,103350.0,0.00044598]
[1737175786869,0.88122578,103360.0,103350.0,0.00044598]
[1737175787107,0.84065011,103360.0,103350.0,0.00044598]
[1737175787309,1.35733798,103360.0,103350.0,0.00044598]
[1737175787529,1.32074728,103360.0,103350.0,0.00044598]
[1737175787699,1.35733798,103360.0,103350.0,0.00044598]
[1737175787906,1.32074728,103360.0,103350.0,0.00044598]
[1737175788715,1.19157531,103360.0,103350.0,0.00044598]
[1737175789695,1.21092851,103360.0,103350.0,0.00044598]
[1737175790139,0.2513952,103340.0,103330.0,0.096774]
[1737175790370,0.2513952,103340.0,103330.0,0.29037758]
[1737175791346,0.2964952,103340.0,103330.0,0.29037758]
[1737175792574,0.76921726,103360.0,103340.0,0.290286]
[1737175792777,0.10771953,103350.0,103340.0,0.290286]
[1737175793785,0.20447753,103350.0,103340.0,0.096763]
[1737175794997,0.10771953,103350.0,103340.0,0.096763]
[1737175799341,0.10771953,103350.0,103340.0,0.0976618]
[1737175800278,0.20447753,103350.0,103340.0,0.0976618]
[1737175800664,0.10771953,103350.0,103340.0,0.0976618]
[1737175800863,0.10771953,103350.0,103340.0,0.0976128]
[1737175801403,0.20447753,103350.0,103340.0,0.0976128]
[1737175801545,0.20447753,103350.0,103340.0,0.0008988]
[1737175802356,0.47501354,103350.0,103340.0,0.0008988]
[1737175802581,0.60021354,103350.0,103340.0,0.0008988]
[1737175803005,0.78680424,103350.0,103340.0,0.0008988]
[1737175804148,0.80980424,103350.0,103340.0,0.0008988]
[1737175804356,0.68663787,103350.0,103340.0,0.0008988]
[1737175805724,1.20322199,103350.0,103340.0,0.0008988]
[1737175805895,0.43402506,103320.0,103310.0,0.00089901]
[1737175806093,0.53326587,103320.0,103310.0,0.00094956]
[1737175806538,0.59684154,103320.0,103310.0,0.00094956]
[1737175807934,0.48912201,103320.0,103310.0,0.00094956]
[1737175809115,0.59684154,103320.0,103310.0,0.00094956]
[1737175809320,0.62874609,103320.0,103310.0,0.00094956]
[1737175810525,0.52102656,103320.0,103310.0,0.00094956]
[1737175811028,0.82705324,103320.0,103310.0,0.00094956]
[1737175811252,0.71933371,103320.0,103310.0,0.00094956]
[1737175811453,0.68742916,103320.0,103310.0,0.00094956]
[1737175812315,0.79514869,103320.0,103310.0,0.00094956]
[1737175812506,0.68742916,103320.0,103310.0,0.00094956]
[1737175812672,0.79514869,103320.0,103310.0,0.00094956]
[1737175812873,0.68742916,103320.0,103310.0,0.00094956]
[1737175813097,0.78666997,103320.0,103310.0,0.00094956]
[1737175813351,0.79514869,103320.0,103310.0,0.00094956]
[1737175815130,0.73157302,103320.0,103310.0,0.00049556]
[1737175816417,0.69498232,103320.0,103310.0,0.00049556]
[1737175816891,1.29638981,103320.0,103310.0,0.00049556]
[1737175817129,1.31938981,103320.0,103310.0,0.00049556]
[1737175817355,1.31938981,103320.0,103300.0,0.00058355]
[1737175817356,0.32631553,103310.0,103300.0,0.00058355]
[1737175817531,0.42555634,103310.0,103300.0,0.00073539]
[1737175817736,0.43167634,103310.0,103300.0,0.00073539]
[1737175817959,0.53939587,103310.0,103300.0,0.00073539]
[1737175818164,0.53939587,103310.0,103290.0,0.00029962]
[1737175818165,0.1865907,103300.0,103290.0,0.00029962]
[1737175818370,0.71987557,103300.0,103290.0,0.00029962]
[1737175819115,0.68328487,103300.0,103290.0,0.00029962]
[1737175819982,1.28321345,103300.0,103290.0,0.00029962]
[1737175821446,1.19750686,103300.0,103290.0,0.00029962]
[1737175821624,0.096833,103270.0,103260.0,0.36636588]
[1737175821764,0.20455253,103270.0,103260.0,0.36636588]
[1737175821967,0.10771953,103270.0,103260.0,0.36687233]
[1737175822176,0.47508854,103270.0,103260.0,0.00050645]
[1737175822575,0.46660982,103270.0,103260.0,0.00050645]
[1737175822841,0.36736901,103270.0,103260.0,0.00050645]
[1737175823263,0.20696034,103270.0,103260.0,0.09734845]
[1737175823484,0.10771953,103270.0,103260.0,0.09734845]
[1737175823880,0.10771953,103270.0,103260.0,0.10037348]
[1737175824136,0.19336372,103280.0,103270.0,0.096833]
[1737175824350,0.19336372,103280.0,103270.0,0.173133]
[1737175824992,0.10771953,103280.0,103270.0,0.173133]
[1737175825165,0.20454353,103280.0,103270.0,0.173133]
[1737175825371,0.10771953,103280.0,103270.0,0.17615803]
[1737175825812,0.20454353,103280.0,103270.0,0.17615803]
[1737175826224,0.36736001,103280.0,103270.0,0.00302503]
[1737175827239,0.46660082,103280.0,103270.0,0.00302503]
[1737175827435,0.66510082,103280.0,103270.0,0.00302503]
[1737175827634,0.63811585,103280.0,103270.0,0.00302503]
[1737175827842,0.74583538,103280.0,103270.0,0.00302503]
[1737175828039,0.74583538,103280.0,103260.0,0.00050645]
[1737175828040,0.16040867,103270.0,103260.0,0.00050645]
[1737175828197,0.62508854,103270.0,103260.0,0.00050645]
[1737175828411,0.61660982,103270.0,103260.0,0.00050645]
[1737175828593,0.51736901,103270.0,103260.0,0.00050645]
[1737175829223,0.6030132,103270.0,103260.0,0.00050645]
[1737175829638,0.6819132,103270.0,103260.0,0.00050645]
[1737175830184,0.6819132,103270.0,103260.0,0.0035317]
[1737175830430,0.69282062,103270.0,103260.0,0.0035317]
[1737175830645,0.80054015,103270.0,103260.0,0.0035317]
[1737175830887,0.83713085,103270.0,103260.0,0.0035317]
[1737175831256,0.80054015,103270.0,103260.0,0.0035317]
[1737175831483,0.96559714,103270.0,103260.0,0.0035317]
[1737175832249,0.90202147,103270.0,103260.0,0.0035317]
[1737175832777,0.78339452,103270.0,103260.0,0.0035317]
[1737175833126,0.84697019,103270.0,103260.0,0.0035317]
[1737175833331,0.76807019,103270.0,103260.0,0.0035317]
[1737175833946,0.90289267,103270.0,103260.0,0.0035317]
[1737175834157,0.90289267,103270.0,103250.0,0.28629518]
[1737175834324,0.30380234,103260.0,103250.0,0.28634582]
[1737175835575,0.30380234,103260.0,103250.0,0.28937116]
[1737175835770,0.20696034,103260.0,103250.0,0.28937116]
[1737175836262,0.20696034,103260.0,103250.0,0.09566816]
[1737175836433,0.30380234,103260.0,103250.0,0.09566816]
[1737175836860,0.34336372,103270.0,103260.0,0.096842]
[1737175837060,0.6030132,103270.0,103250.0,0.39045598]
[1737175837288,0.7966802,103270.0,103250.0,0.48730098]
[1737175837488,0.89592101,103270.0,103250.0,0.48730098]
[1737175837897,0.82160448,103270.0,103250.0,0.48730098]
[1737175838328,0.62793748,103270.0,103260.0,0.096842]
[1737175838602,0.52869667,103270.0,103260.0,0.096842]
[1737175838800,0.72236367,103270.0,103250.0,0.48730098]
[1737175839489,0.25771953,103260.0,103250.0,0.29360898]
[1737175839896,0.51737801,103260.0,103250.0,0.00307598]
[1737175845219,0.62509754,103260.0,103250.0,0.00307598]
[1737175845645,0.80952905,103260.0,103250.0,0.00307598]
[1737175846398,0.82355338,103260.0,103250.0,0.00307598]
[1737175846725,0.82355338,103260.0,103250.0,0.00350438]
[1737175846891,0.90919757,103260.0,103250.0,0.00350438]
[1737175847325,0.096861,103240.0,103230.0,0.1799618]
[1737175847513,0.10771953,103240.0,103230.0,0.1799618]
[1737175847714,0.20458053,103240.0,103230.0,0.1799618]
[1737175847916,0.20458053,103240.0,103230.0,0.0830988]
[1737175848338,0.30382134,103240.0,103230.0,0.0008988]
[1737175851211,0.56509701,103240.0,103230.0,0.0008988]
[1737175851703,0.6507412,103240.0,103230.0,0.0008988]
[1737175852922,0.77920749,103240.0,103230.0,0.0008988]
[1737175853335,0.79008678,103240.0,103230.0,0.0008988]
[1737175855186,0.67881111,103240.0,103230.0,0.0008988]
[1737175855446,0.85022429,103240.0,103230.0,0.0008988]
[1737175855593,0.91379996,103240.0,103230.0,0.0008988]
[1737175856018,1.01304077,103240.0,103230.0,0.0008988]
[1737175856487,0.84162759,103240.0,103230.0,0.0008988]
[1737175858366,0.74238678,103240.0,103230.0,0.0008988]
[1737175859596,0.5795703,103240.0,103230.0,0.0977698]
[1737175859789,0.5795703,103240.0,103230.0,0.1756698]
[1737175860228,0.5795703,103240.0,103230.0,0.17869577]
[1737175860658,0.4827093,103240.0,103230.0,0.17869577]
[1737175860869,0.5795703,103240.0,103230.0,0.17869577]
[1737175861209,0.5795703,103240.0,103230.0,0.1756698]
[1737175861413,0.4295703,103240.0,103230.0,0.1756698]
[1737175861615,0.4295703,103240.0,103230.0,0.0787988]
[1737175862128,0.84162759,103240.0,103230.0,0.0008988]
[1737175863403,0.88932759,103240.0,103230.0,0.0008988]
[1737175863807,1.27498969,103240.0,103230.0,0.0008988]
[1737175864357,1.29291402,103240.0,103230.0,0.0008988]
[1737175864553,1.32950472,103240.0,103230.0,0.0008988]
[1737175865239,0.94398106,103240.0,103230.0,0.0008988]
[1737175866471,0.87172522,103240.0,103230.0,0.0008988]
[1737175866646,0.63480569,103240.0,103230.0,0.0008988]
[1737175866873,0.74252522,103240.0,103230.0,0.0008988]
[1737175867147,0.91479751,103240.0,103230.0,0.0008988]
[1737175868102,0.91591165,103240.0,103230.0,0.0008988]
[1737175868370,1.01515246,103240.0,103230.0,0.0008988]
[1737175869580,0.38763535,103240.0,103230.0,0.1806698]
[1737175870596,0.19386475,103250.0,103230.0,0.3744038]
[1737175870947,0.00089881,103240.0,103230.0,0.3744038]
[1737175875595,0.00089881,103240.0,103230.0,0.4378131]
[1737175877013,0.00089881,103240.0,103230.0,0.44897428]
[1737175878087,0.00089881,103240.0,103230.0,0.48539861]
[1737175880736,0.00089881,103240.0,103230.0,0.58463942]
[1737175880917,0.00089881,103240.0,103230.0,0.63133942]
[1737175882059,0.00089881,103240.0,103230.0,0.53209861]
[1737175882692,0.00089881,103240.0,103230.0,0.73905895]
[1737175882892,0.00089881,103240.0,103230.0,0.76921821]
[1737175884293,0.00089881,103240.0,103230.0,0.79665577]
[1737175885390,0.00089881,103240.0,103230.0,0.68893624]
[1737175885593,0.00089881,103240.0,103230.0,0.65877698]
[1737175886256,0.00089881,103240.0,103230.0,0.63133942]
[1737175886495,0.00089881,103240.0,103230.0,0.73905895]
[1737175888814,0.00089881,103240.0,103230.0,0.76918524]
[1737175888993,0.00089881,103240.0,103230.0,0.73905895]
[1737175892775,0.0006429,103240.0,103230.0,1.05841897]
[1737175892971,0.0006429,103240.0,103230.0,1.11589538]
[1737175893158,0.0006429,103240.0,103230.0,0.98082117]
[1737175893362,0.0006429,103240.0,103230.0,1.0885407]
[1737175893873,0.0006429,103240.0,103230.0,1.11589538]
[1737175897395,9e-07,103240.0,103230.0,1.32201538]
[1737175899365,9e-07,103240.0,103230.0,1.40827903]
[1737175901101,9e-07,103240.0,103230.0,1.46638903]
[1737175901305,9e-07,103240.0,103230.0,1.36963854]
[1737175901618,0.00099661,103260.0,103250.0,0.49148563]
[1737175901846,0.00099661,103260.0,103250.0,0.87492772]
[1737175902122,0.00099661,103260.0,103250.0,0.97492772]
[1737175902483,6.1e-07,103260.0,103250.0,0.97492772]
[1737175902695,6.1e-07,103260.0,103250.0,1.07492772]
[1737175905719,6.1e-07,103260.0,103250.0,0.96720819]
[1737175907373,6.1e-07,103260.0,103250.0,0.98679779]
[1737175908408,0.00089964,103270.0,103260.0,0.19793363]
[1737175908608,0.00089964,103270.0,103260.0,0.82071998]
[1737175908807,0.00089964,103270.0,103260.0,0.81975191]
[1737175909659,0.00089964,103270.0,103260.0,0.96975191]
[1737175909979,0.00089964,103270.0,103260.0,1.06975191]
[1737175910976,0.0488,103300.0,103290.0,0.24983363]
[1737175911355,0.0777,103310.0,103300.0,0.19663863]
[1737175911356,0.047,103310.0,103300.0,0.19663863]
[1737175911579,0.07859922,103320.0,103310.0,0.19662963]
[1737175911783,0.07859922,103320.0,103310.0,0.55358997]
[1737175911784,0.00140595,103320.0,103310.0,0.55358997]
[1737175912618,0.00140595,103320.0,103310.0,0.44587044]
[1737175912835,0.00140595,103320.0,103310.0,0.40944611]
[1737175912963,0.00140595,103320.0,103310.0,0.44587044]
[1737175913765,0.00140595,103320.0,103310.0,0.55358997]
[1737175914359,0.00140595,103320.0,103310.0,0.44587044]
[1737175915451,0.00140595,103320.0,103310.0,0.45641902]
[1737175916440,0.00140595,103320.0,103310.0,0.56413855]
[1737175919080,0.00140595,103320.0,103310.0,0.64733855]
[1737175925801,0.00140595,103320.0,103310.0,0.45641902]
[1737175926004,0.00140595,103320.0,103310.0,0.56413855]
[1737175935186,0.07670595,103320.0,103310.0,0.45641902]
[1737175935436,0.07670595,103320.0,103310.0,0.41999469]
[1737175935679,0.07670595,103320.0,103310.0,0.45641902]
[1737175936151,0.12520595,103320.0,103310.0,0.45641902]
[1737175939006,0.12520595,103320.0,103310.0,0.1602053]
[1737175939726,0.00140595,103320.0,103310.0,0.48008997]
[1737175939934,0.00140595,103320.0,103310.0,0.63008997]
[1737175940118,0.00140595,103320.0,103310.0,0.68319027]
[1737175941065,9.5e-07,103320.0,103310.0,0.9909098]
[1737175941481,9.5e-07,103320.0,103310.0,0.90288341]
[1737175941678,9.5e-07,103320.0,103310.0,0.92859313]
[1737175941920,9.5e-07,103320.0,103310.0,1.03631266]
[1737175942123,9.5e-07,103320.0,103310.0,0.92859313]
[1737175942727,9.5e-07,103320.0,103310.0,1.03631266]
[1737175942935,9.5e-07,103320.0,103310.0,0.92859313]
[1737175943113,9.5e-07,103320.0,103310.0,1.11160621]
[1737175944101,9.5e-07,103320.0,103310.0,0.97549313]
[1737175944889,9.5e-07,103320.0,103310.0,0.94978341]
[1737175947709,9.5e-07,103320.0,103310.0,0.97549313]
[1737175948114,9.5e-07,103320.0,103310.0,0.94978341]
[1737175950816,0.00089954,103320.0,103310.0,0.94978341]
[1737175951504,5.4e-07,103320.0,103310.0,0.94978341]
[1737175954284,5.4e-07,103320.0,103310.0,0.84978341]
[1737175954490,5.4e-07,103320.0,103310.0,0.90288341]
[1737175954698,5.4e-07,103320.0,103310.0,0.73947411]
[1737175955053,5.4e-07,103320.0,103310.0,0.90288341]
[1737175955474,5.4e-07,103320.0,103310.0,0.80288341]
[1737175955679,5.4e-07,103320.0,103310.0,0.90916341]
[1737175956140,5.4e-07,103320.0,103310.0,0.80916341]
[1737175956666,5.4e-07,103320.0,103310.0,0.80288341]
[1737175956884,5.4e-07,103320.0,103310.0,0.80916341]
[1737175957087,5.4e-07,103320.0,103310.0,0.68997027]
[1737175957293,5.4e-07,103320.0,103310.0,0.52656097]
[1737175958399,5.4e-07,103320.0,103310.0,0.68997027]
[1737175960101,5.4e-07,103320.0,103310.0,0.52656097]
[1737175960318,5.4e-07,103320.0,103310.0,0.68997027]
[1737175962198,5.4e-07,103320.0,103310.0,0.68369027]
[1737175962397,5.4e-07,103320.0,103310.0,0.68997027]
[1737175962806,5.4e-07,103320.0,103310.0,0.52070867]
[1737175962947,5.4e-07,103320.0,103310.0,0.47639844]
[1737175963600,0.07750054,103320.0,103310.0,0.44629814]
[1737175968619,5.4e-07,103320.0,103310.0,0.55401767]
[1737175968830,5.4e-07,103320.0,103310.0,0.58414762]
[1737175970681,5.4e-07,103320.0,103310.0,0.47642809]
[1737175970867,5.4e-07,103320.0,103310.0,0.44629814]
[1737175971068,5.4e-07,103320.0,103310.0,0.38288884]
[1737175971261,0.08050054,103320.0,103310.0,0.44629814]
[1737175975547,5.4e-07,103320.0,103310.0,0.44629814]
[1737175975750,5.4e-07,103320.0,103310.0,0.47643912]
[1737175976084,5.4e-07,103320.0,103310.0,0.44629814]
[1737175977534,5.4e-07,103320.0,103310.0,0.38288884]
[1737175977535,0.08050054,103320.0,103310.0,0.38288884]
[1737175977754,0.08050054,103320.0,103310.0,0.44629814]
[1737175983131,0.08050054,103320.0,103310.0,0.38288884]
[1737175983336,0.08050054,103320.0,103310.0,0.44629814]
[1737175985620,0.08050054,103320.0,103310.0,0.19705733]
[1737175985826,0.33040607,103320.0,103310.0,0.0972237]
[1737175986032,0.33040607,103320.0,103310.0,0.0004277]
[1737175986677,0.49322255,103320.0,103310.0,0.0004277]
[1737175987105,0.70747147,103320.0,103310.0,0.0004277]
[1737175988538,0.75312554,103320.0,103310.0,0.0004277]
[1737175990084,0.68954987,103320.0,103310.0,0.0972237]
[1737175990308,0.38580353,103320.0,103310.0,0.0972237]
[1737175990515,0.48258953,103320.0,103310.0,0.0972237]
[1737175990923,0.38580353,103320.0,103310.0,0.0972237]
[1737175991973,0.51354239,103320.0,103310.0,0.0972237]
[1737175992181,0.51354239,103320.0,103310.0,0.13364803]
[1737175993030,0.21204581,103320.0,103310.0,0.13364803]
[1737175993663,0.13154581,103320.0,103310.0,0.13364803]
[1737175994000,0.08614581,103320.0,103310.0,0.55498553]
[1737175994115,0.08614581,103320.0,103310.0,0.55401767]
[1737175994324,5.4e-07,103320.0,103310.0,0.63381767]
[1737175996010,5.4e-07,103320.0,103310.0,0.52609814]
[1737176008138,5.4e-07,103320.0,103310.0,0.63381767]
[1737176008346,5.4e-07,103320.0,103310.0,0.93343423]
[1737176009970,5.4e-07,103320.0,103310.0,1.04115376]
[1737176010175,5.4e-07,103320.0,103310.0,0.93343423]
[1737176010584,5.4e-07,103320.0,103310.0,1.12741741]
[1737176010759,0.00089901,103350.0,103340.0,0.53222016]
[1737176010967,0.00105099,103350.0,103340.0,0.67010146]
[1737176011175,0.00105099,103350.0,103340.0,0.79310146]
[1737176011378,0.00105099,103350.0,103340.0,0.8231866]
[1737176011584,0.00105099,103350.0,103340.0,0.79310146]
[1737176011792,0.00105099,103350.0,103340.0,0.82316791]
[1737176013618,0.00105099,103350.0,103340.0,0.79310146]
[1737176016416,0.00105099,103350.0,103340.0,0.81278733]
[1737176017351,0.00105099,103350.0,103340.0,0.8229956]
[1737176018536,0.02105099,103350.0,103340.0,0.8229956]
[1737176021036,0.02105099,103350.0,103340.0,0.8440466]
[1737176021802,0.02105099,103350.0,103340.0,0.9440466]
[1737176023409,0.02105099,103350.0,103340.0,0.9501666]
[1737176024885,0.02105099,103350.0,103340.0,0.98272612]
[1737176027602,0.02105099,103350.0,103340.0,0.98011567]
[1737176030524,0.02105099,103350.0,103340.0,0.94755615]
[1737176031316,0.02105099,103350.0,103340.0,0.84755615]
[1737176031533,0.02105099,103350.0,103340.0,0.80852065]
[1737176031755,0.02105099,103350.0,103340.0,0.840735]
[1737176032178,0.02105099,103350.0,103340.0,0.94845453]
[1737176032864,0.02105099,103350.0,103340.0,0.84845453]
[1737176033065,0.02105099,103350.0,103340.0,0.68504523]
[1737176033270,0.02105099,103350.0,103340.0,0.84845453]
[1737176033879,0.02105099,103350.0,103340.0,0.94845453]
[1737176034288,0.02105099,103350.0,103340.0,0.84845453]
[1737176034466,0.02105099,103350.0,103340.0,0.68504523]
[1737176034807,0.02105099,103350.0,103340.0,0.94845453]
[1737176035020,0.02105099,103350.0,103340.0,0.84845453]
[1737176035319,0.02105099,103350.0,103340.0,0.94845453]
[1737176036679,0.02105099,103350.0,103340.0,0.97851434]
[1737176036878,0.02105099,103350.0,103340.0,0.87851434]
[1737176037146,0.02105099,103350.0,103340.0,0.94845453]
[1737176037564,0.02105099,103350.0,103340.0,1.01107336]
[1737176038323,0.02105099,103350.0,103340.0,0.97851384]
[1737176041003,0.02105099,103350.0,103340.0,0.93987335]
[1737176041117,0.02105099,103350.0,103340.0,0.78305947]
[1737176041322,0.02105099,103350.0,103340.0,0.51020282]
[1737176041692,0.02105099,103350.0,103340.0,0.49051695]
[1737176042915,0.02105099,103350.0,103340.0,0.42710765]
[1737176043145,0.02105099,103350.0,103340.0,0.49051695]
[1737176043880,0.02105099,103350.0,103340.0,0.59823648]
[1737176045397,0.02105099,103350.0,103340.0,0.753796]
[1737176045883,0.02105099,103350.0,103340.0,0.834096]
[1737176046852,0.02105099,103350.0,103340.0,0.49659377]
[1737176047054,0.02105099,103350.0,103340.0,0.56000307]
[1737176047263,0.02105099,103350.0,103340.0,0.69381695]
[1737176047591,0.02105099,103350.0,103340.0,0.51351695]
[1737176048062,0.02105099,103350.0,103340.0,0.72123648]
[1737176048296,0.02105099,103350.0,103340.0,0.62123648]
[1737176048568,0.02105099,103350.0,103340.0,0.72123648]
[1737176050835,0.02105099,103350.0,103340.0,0.42710765]
[1737176051546,0.02105099,103350.0,103340.0,0.42098765]
[1737176052849,0.00697899,103360.0,103350.0,0.28057188]
[1737176053055,0.0070769,103360.0,103350.0,0.37981269]
[1737176053718,0.0070769,103360.0,103350.0,0.29322199]
[1737176053921,0.0070769,103360.0,103350.0,0.22981269]
[1737176054126,0.22244008,103360.0,103350.0,0.22981269]
[1737176054708,0.22244008,103360.0,103350.0,0.29322199]
[1737176055865,0.27154008,103360.0,103350.0,0.29322199]
[1737176056273,0.44382535,103360.0,103350.0,0.29322199]
[1737176058275,0.55154488,103360.0,103350.0,0.19398118]
[1737176058987,0.44382535,103360.0,103350.0,0.19398118]
[1737176059576,0.57303666,103360.0,103350.0,0.19398118]
[1737176060244,0.57303666,103360.0,103350.0,0.13057188]
[1737176060446,0.57303666,103360.0,103350.0,0.19398118]
[1737176062925,0.44417171,103360.0,103350.0,0.19398118]
[1737176063358,0.51491634,103360.0,103350.0,0.19398118]
[1737176063801,0.64378129,103360.0,103350.0,0.19398118]
[1737176064025,0.57303666,103360.0,103350.0,0.19398118]
[1737176066065,0.65950443,103360.0,103350.0,0.19398118]
[1737176067124,0.65950443,103360.0,103350.0,0.19487956]
[1737176067333,0.65993223,103360.0,103350.0,0.19487956]
[1737176069329,0.86448135,103360.0,103350.0,0.09765638]
[1737176069527,0.86448135,103360.0,103350.0,0.16106568]
[1737176069731,0.86448135,103360.0,103350.0,0.09765638]
[1737176069944,0.76773235,103360.0,103350.0,0.16106568]
[1737176070149,0.65993223,103360.0,103350.0,0.16106568]
[1737176070585,0.65295324,103360.0,103350.0,0.29412037]
[1737176076761,0.60385324,103360.0,103350.0,0.29412037]
[1737176079102,0.65155324,103360.0,103350.0,0.29412037]
[1737176084052,0.82430224,103360.0,103350.0,0.09765638]
[1737176084214,0.73783447,103360.0,103350.0,0.09765638]
[1737176085069,0.73783447,103360.0,103350.0,0.16106568]
[1737176085680,0.43633129,103360.0,103350.0,0.16106568]
[1737176085884,0.33958229,103360.0,103350.0,0.16106568]
[1737176087411,0.21588229,103360.0,103350.0,0.23706568]
[1737176087591,0.21588229,103360.0,103350.0,0.6581157]
[1737176088353,0.21588229,103360.0,103350.0,0.55031558]
[1737176088558,0.21588229,103360.0,103350.0,0.6581157]
[1737176088878,0.08701564,103360.0,103350.0,0.6581157]
[1737176089409,0.08701564,103360.0,103350.0,0.62103491]
[1737176090201,0.00052571,103360.0,103350.0,0.62103491]
[1737176095840,0.00052571,103360.0,103350.0,0.55031558]
[1737176096969,0.00052571,103360.0,103350.0,0.48690628]
[1737176097395,0.00052571,103360.0,103350.0,0.52012037]
[1737176097610,0.00052571,103360.0,103350.0,0.55028035]
[1737176097833,0.00052571,103360.0,103350.0,0.38071107]
[1737176098142,0.00052571,103360.0,103350.0,0.09765638]
[1737176098143,0.16799404,103360.0,103350.0,0.09765638]
[1737176098311,0.24599404,103360.0,103350.0,0.09765638]
[1737176098866,0.63519872,103360.0,103350.0,0.09765638]
[1737176099226,0.53844972,103360.0,103350.0,0.09765638]
[1737176099426,0.67229621,103360.0,103350.0,0.09765638]
[1737176099834,0.7583511,103360.0,103350.0,0.09765638]
[1737176100221,0.6616021,103360.0,103350.0,0.09765638]
[1737176101023,0.7583511,103360.0,103350.0,0.09765638]
[1737176101220,0.65053428,103360.0,103350.0,0.09765638]
[1737176101641,0.29388229,103360.0,103350.0,0.09765638]
[1737176102255,0.21588229,103360.0,103350.0,0.29508793]
[1737176102435,0.21588229,103360.0,103350.0,0.29412037]
[1737176103878,0.38967266,103360.0,103350.0,0.37102037]
[1737176105979,0.21671846,103360.0,103350.0,0.37102037]
[1737176107205,0.21671846,103360.0,103350.0,0.67393719]
[1737176107454,0.21671846,103360.0,103350.0,0.52102037]
[1737176108041,0.38967266,103360.0,103350.0,0.52102037]
[1737176112231,0.21671846,103360.0,103350.0,0.52102037]
[1737176113261,0.21671846,103360.0,103350.0,0.45761107]
[1737176113487,0.38967266,103360.0,103350.0,0.45761107]
[1737176113893,0.38967266,103360.0,103350.0,0.38071107]
[1737176114219,0.38967266,103360.0,103350.0,0.29412037]
[1737176114626,0.38967266,103360.0,103350.0,0.23071107]
[1737176115005,0.38967266,103360.0,103350.0,0.29412037]
[1737176115367,0.38967266,103360.0,103350.0,0.23071107]
[1737176115764,0.60502924,103360.0,103350.0,0.29412037]
[1737176116749,0.51855214,103360.0,103350.0,0.29412037]
[1737176116950,0.51855214,103360.0,103350.0,0.23071107]
[1737176117474,0.51855214,103360.0,103350.0,0.29412037]
[1737176118697,0.51855214,103360.0,103350.0,0.23071107]
[1737176119050,0.60504422,103360.0,103350.0,0.29412037]
[1737176121099,0.51855214,103360.0,103350.0,0.29412037]
[1737176123137,0.60504037,103360.0,103350.0,0.29412037]
[1737176130879,0.38968379,103360.0,103350.0,0.29412037]
[1737176132001,0.60504037,103360.0,103350.0,0.29412037]
[1737176133568,0.60504037,103360.0,103350.0,0.23071107]
[1737176133764,0.89185933,103360.0,103350.0,0.00089838]
[1737176133988,0.97025933,103360.0,103350.0,0.00089838]
[1737176134421,0.80277535,103360.0,103350.0,0.09765638]
[1737176134619,0.89952435,103360.0,103350.0,0.09765638]
[1737176135195,0.45816368,103360.0,103350.0,0.09765638]
[1737176135609,0.55491268,103360.0,103350.0,0.09765638]
[1737176136381,0.29500969,103360.0,103350.0,0.09765638]
[1737176137547,0.55491268,103360.0,103350.0,0.09765638]
[1737176137753,0.2604287,103360.0,103350.0,0.09765638]
[1737176137964,0.2604287,103360.0,103350.0,0.37452037]
[1737176139789,0.38970859,103360.0,103350.0,0.37452037]
[1737176144262,0.46044357,103360.0,103350.0,0.37452037]
[1737176144427,0.38970859,103360.0,103350.0,0.37452037]
[1737176145199,0.67665628,103360.0,103350.0,0.37452037]
[1737176145396,0.67665628,103360.0,103350.0,0.29412037]
[1737176145810,0.6059213,103360.0,103350.0,0.29412037]
[1737176146218,0.67665628,103360.0,103350.0,0.29412037]
[1737176146592,0.6059213,103360.0,103350.0,0.29412037]
[1737176147065,0.21673842,103360.0,103350.0,0.29412037]
[1737176148067,0.21673842,103360.0,103350.0,0.37392037]
[1737176149570,0.51961578,103360.0,103350.0,0.37392037]
[1737176153447,0.3898112,103360.0,103350.0,0.37392037]
[1737176156335,0.51960754,103360.0,103350.0,0.37392037]
[1737176159938,0.3898112,103360.0,103350.0,0.37392037]
[1737176160540,0.3898112,103360.0,103350.0,0.42332037]
[1737176161232,0.47636093,103360.0,103350.0,0.42332037]
[1737176161839,0.51966423,103360.0,103350.0,0.42332037]
[1737176163166,0.51966423,103360.0,103350.0,0.37392037]
[1737176165157,0.3898112,103360.0,103350.0,0.37392037]
[1737176167132,0.51966139,103360.0,103350.0,0.37392037]
[1737176167900,0.3898112,103360.0,103350.0,0.37392037]
[1737176169113,0.47664141,103360.0,103350.0,0.37392037]
[1737176170088,0.21673842,103360.0,103350.0,0.37392037]
[1737176171234,0.38984597,103360.0,103350.0,0.37392037]
[1737176174289,0.38984597,103360.0,103350.0,0.62485469]
[1737176174469,0.38984597,103360.0,103350.0,0.67175469]